[Event "SixDays Budapest March IM B 2025"]
[Site "Budapest"]
[Date "2025.03.28"]
[Round "8.1"]
[White "Chakrabarty, Reyaansh"]
[Black "Savanovic, Aleksandar"]
[Result "0-1"]
[Annotator "RC"]
[ECO "C50"]
[WhiteElo "2181"]
[BlackElo "2355"]
[PlyCount "122"]
[EventDate "2025.03.23"]
[EventType "tourn"]
[EventCountry "HUN"]
[SourceTitle "playchess.com"]
[Source "ChessBase"]
[SourceQuality "1"]
[TimeControl "5400+30"]

1. e4 {[%emt 0:06:24]} e5 {[%emt 0:00:09]} 2. Nf3 {[%emt 0:00:03]} Nc6 {[%emt 0:00:07]} 3. Bc4 {[%emt 0:00:08]} Nf6 {[%emt 0:00:32]} 4. d3 {[%emt 0:00:15]} Bc5 {[%emt 0:00:15]} 5. O-O {[%emt 0:00:08]} d6 {[%emt 0:00:04]} 6. c3 {[%emt 0:00:08]} O-O {[%emt 0:00:09]} 7. h3 {[%emt 0:00:52]} a6 {[%emt 0:00:58]} 8. Re1 {[%emt 0:00:11]} Ba7 {[%emt 0:00:16]} 9. a4 {[%emt 0:00:16]} h6 {[%emt 0:00:15]} 10. Nbd2 {[%emt 0:01:08]} Re8 {[%emt 0:01:18]} 11. Nf1 {[%emt 0:00:26]} Be6 {[%emt 0:00:26]} 12. Bxe6 {[%emt 0:00:18]} Rxe6 {[%emt 0:00:05]} 13. b4 {[%emt 0:00:32]} d5 {[%emt 0:12:58]} 14. Bb2 {[%emt 0:03:20]} dxe4 {[%emt 0:22:07]} 15. dxe4 {[%emt 0:00:29]} Qe8 {[%emt 0:00:05]} 16. Qe2 {[%emt 0:10:37]} a5 {[%emt 0:10:53]} 17. b5 {[%emt 0:06:27]} Nb8 {[%emt 0:00:12]} 18. Nh4 {[%emt 0:09:50]} Nbd7 {[%emt 0:03:15]} 19. Nf5 {[%emt 0:03:50]} Bc5 {[%emt 0:01:30]} 20. Nd2 {[%emt 0:00:51]} Bf8 {[%emt 0:04:36]} 21. Ne3 {[%emt 0:07:52]} c6 {[%emt 0:02:59]} 22. bxc6 {[%emt 0:01:40]} bxc6 {[%emt 0:01:46]} 23. Ba3 {[%emt 0:01:10]} Bxa3 {[%emt 0:02:41]} 24. Rxa3 {[%emt 0:00:10]} Qf8 {[%emt 0:00:42]} 25. Raa1 {[%emt 0:01:14]} Nc5 {[%emt 0:00:45]} 26. Nec4 {[%emt 0:04:52]} Qe7 {[%emt 0:04:43]} 27. Qf3 {[%emt 0:03:55]} Rd8 {[%emt 0:02:13]} 28. Nf1 {[%emt 0:00:44]} Qa7 {[%emt 0:03:16]} 29. Ng3 {[%emt 0:07:40]} Qa6 {[%emt 0:00:19]} 30. Ne3 {[%emt 0:00:44]} Nb3 {[%emt 0:04:34]} 31. Ra2 {[%emt 0:08:31]} Nd2 {[%emt 0:01:18]} 32. Qd1 {[%emt 0:00:01]} Red6 {[%emt 0:02:46]} 33. Nef5 {[%emt 0:00:13]} R6d7 {[%emt 0:04:01]} 34. Qe2 {[%emt 0:00:59]} Qxe2 {[%emt 0:00:39]} 35. Rxe2 {[%emt 0:00:10]} Nc4 {[%emt 0:04:59]} 36. Ne3 {[%emt 0:01:39]} Nxe3 {[%emt 0:01:21]} 37. Rxe3 {[%emt 0:00:10]} Rd1+ {[%emt 0:00:19]} 38. Kh2 {[%emt 0:00:26]} g6 {[%emt 0:00:48]} 39. Rf3 {[%emt 0:00:33]} Kg7 {[%emt 0:00:39]} 40. Rb2 {[%emt 0:02:32]} Ra1 {[%emt 0:00:09]} 41. Rb6 {[%emt 0:01:03]} Rd6 {[%emt 0:00:05]} 42. c4 {[%emt 0:01:19]} Rxa4 {[%emt 0:00:22]} 43. c5 {[%emt 0:00:01]} Re6 {[%emt 0:00:07]} 44. Rd3 {[%emt 0:01:27]} Nxe4 {[%emt 0:02:05]} 45. Nxe4 {[%emt 0:01:17]} Rxe4 {[%emt 0:00:07]} 46. Rd6 {[%emt 0:00:03]} Rxd6 {[%emt 0:00:30]} 47. cxd6 {[%emt 0:00:01]} Rc4 {[%emt 0:00:31]} 48. Ra6 {[%emt 0:00:38]} a4 {[%emt 0:00:18]} 49. d7 {[%emt 0:03:21]} Rd4 {[%emt 0:00:08]} 50. Rxc6 {[%emt 0:00:01]} Rxd7 {[%emt 0:00:06]} 51. Ra6 {[%emt 0:00:00]} Rd4 {[%emt 0:00:09]} 52. Kg3 {[%emt 0:00:16]} h5 {[%emt 0:00:22]} 53. Kf3 {[%emt 0:00:15]} h4 {[%emt 0:00:33]} 54. Ke3 {[%emt 0:00:01]} g5 {[%emt 0:01:11]} 55. Ra5 {[%emt 0:00:29]} f6 {[%emt 0:00:08]} 56. Ra7+ {[%emt 0:00:02]} Kg6 {[%emt 0:00:03]} 57. g4 {[%emt 0:00:59]} hxg3 {[%emt 0:00:37]} 58. fxg3 {[%emt 0:00:07]} Rb4 {[%emt 0:00:05]} 59. Kf2 {[%emt 0:00:48]} Kf5 {[%emt 0:01:04]} 60. Ra6 {[%emt 0:00:04]} Rb2+ {[%emt 0:01:05]} 61. Ke3 {[%emt 0:00:05]} Rb3+ {[%emt 0:00:04]} 0-1

[Event "SixDays Budapest March IM B 2025"]
[Site "Budapest"]
[Date "2025.03.28"]
[Round "8.2"]
[White "Suder, Jakub"]
[Black "Katsanis, Vasileios Dim"]
[Result "1-0"]
[Annotator "RC"]
[ECO "D31"]
[WhiteElo "2347"]
[BlackElo "2253"]
[PlyCount "117"]
[EventDate "2025.03.23"]
[EventType "tourn"]
[EventCountry "HUN"]
[SourceTitle "playchess.com"]
[Source "ChessBase"]
[SourceQuality "1"]
[TimeControl "5400+30"]

1. d4 {[%emt 0:00:02]} d5 {[%emt 0:00:08]} 2. c4 {[%emt 0:00:04]} e6 {[%emt 0:00:05]} 3. Nc3 {[%emt 0:00:05]} a6 {[%emt 0:00:05]} 4. cxd5 {[%emt 0:00:04]} exd5 {[%emt 0:00:03]} 5. g3 {[%emt 0:00:09]} c6 {[%emt 0:01:25]} 6. Bg2 {[%emt 0:00:19]} Bd6 {[%emt 0:01:37]} 7. Nh3 {[%emt 0:00:33]} Nf6 {[%emt 0:02:28]} 8. O-O {[%emt 0:00:13]} O-O {[%emt 0:02:25]} 9. Nf4 {[%emt 0:00:07]} Re8 {[%emt 0:13:45]} 10. Kh1 {[%emt 0:00:12]} b5 {[%emt 0:13:17]} 11. f3 {[%emt 0:02:13]} b4 {[%emt 0:18:30]} 12. Na4 {[%emt 0:00:17]} Nbd7 {[%emt 0:00:30]} 13. Qc2 {[%emt 0:03:54]} Bb7 {[%emt 0:09:08]} 14. e4 {[%emt 0:02:47]} Bxf4 {[%emt 0:03:06]} 15. Bxf4 {[%emt 0:02:25]} dxe4 {[%emt 0:00:42]} 16. fxe4 {[%emt 0:00:10]} c5 {[%emt 0:00:43]} 17. e5 {[%emt 0:15:54]} Bxg2+ {[%emt 0:03:56]} 18. Qxg2 {[%emt 0:00:08]} Nh5 {[%emt 0:01:21]} 19. Nxc5 {[%emt 0:01:03]} Nxc5 {[%emt 0:00:34]} 20. dxc5 {[%emt 0:00:06]} Rc8 {[%emt 0:05:47]} 21. Rad1 {[%emt 0:09:22]} Qe7 {[%emt 0:06:25]} 22. Bd2 {[%emt 0:04:35]} Qxe5 {[%emt 0:01:57]} 23. Bxb4 {[%emt 0:00:50]} Nf6 {[%emt 0:00:43]} 24. Bc3 {[%emt 0:03:20]} Qxc5 {[%emt 0:00:04]} 25. Bxf6 {[%emt 0:00:45]} gxf6 {[%emt 0:00:02]} 26. Rxf6 {[%emt 0:00:42]} Qc2 {[%emt 0:04:14]} 27. Rdf1 {[%emt 0:03:20]} Qxg2+ {[%emt 0:02:44]} 28. Kxg2 {[%emt 0:00:05]} Rc2+ {[%emt 0:00:28]} 29. R1f2 {[%emt 0:00:28]} Rxf2+ {[%emt 0:02:48]} 30. Kxf2 {[%emt 0:02:02]} a5 {[%emt 0:00:11]} 31. b3 {[%emt 0:01:18]} a4 {[%emt 0:01:50]} 32. bxa4 {[%emt 0:03:48]} Rb8 {[%emt 0:01:07]} 33. Ke3 {[%emt 0:00:11]} Rb2 {[%emt 0:00:11]} 34. Rf2 {[%emt 0:00:07]} Rb4 {[%emt 0:00:03]} 35. a5 {[%emt 0:00:51]} Ra4 {[%emt 0:00:04]} 36. Kd3 {[%emt 0:01:08]} Rxa5 {[%emt 0:00:05]} 37. Kc4 {[%emt 0:00:07]} Ra8 {[%emt 0:00:42]} 38. Kb3 {[%emt 0:02:31]} Rb8+ {[%emt 0:00:07]} 39. Kc2 {[%emt 0:00:10]} Ra8 {[%emt 0:00:18]} 40. Kb1 {[%emt 0:00:09]} Kg7 {[%emt 0:03:29]} 41. Rf4 {[%emt 0:00:07]} Re8 {[%emt 0:01:46]} 42. Rh4 {[%emt 0:01:07]} f5 {[%emt 0:01:00]} 43. a4 {[%emt 0:00:52]} Ra8 {[%emt 0:00:59]} 44. Kc2 {[%emt 0:00:12]} Kg6 {[%emt 0:00:03]} 45. Kc3 {[%emt 0:00:16]} h5 {[%emt 0:00:19]} 46. Kb4 {[%emt 0:00:08]} Rb8+ {[%emt 0:00:16]} 47. Kc5 {[%emt 0:00:08]} Rc8+ {[%emt 0:00:14]} 48. Kb5 {[%emt 0:00:25]} Rb8+ {[%emt 0:00:04]} 49. Kc6 {[%emt 0:00:08]} Rc8+ {[%emt 0:01:43]} 50. Kb7 {[%emt 0:00:08]} Rc5 {[%emt 0:00:18]} 51. Kb6 {[%emt 0:00:08]} Re5 {[%emt 0:00:04]} 52. a5 {[%emt 0:00:57]} Re6+ {[%emt 0:00:02]} 53. Kc7 {[%emt 0:00:14]} Re7+ {[%emt 0:00:17]} 54. Kd6 {[%emt 0:00:10]} Re2 {[%emt 0:00:16]} 55. Ra4 {[%emt 0:02:12]} Rxh2 {[%emt 0:00:05]} 56. a6 {[%emt 0:00:08]} Rd2+ {[%emt 0:00:04]} 57. Ke5 {[%emt 0:00:30]} Rd8 {[%emt 0:02:20]} 58. a7 {[%emt 0:00:08]} Ra8 {[%emt 0:00:03]} 59. Kf4 {[%emt 0:00:07]} 1-0

[Event "SixDays Budapest March IM B 2025"]
[Site "Budapest"]
[Date "2025.03.28"]
[Round "8.3"]
[White "Banerjee, Supratit"]
[Black "Pavan Karthikeya Varma Gunturi"]
[Result "1/2-1/2"]
[Annotator "NA RC"]
[ECO "B47"]
[WhiteElo "2250"]
[BlackElo "2015"]
[PlyCount "39"]
[EventDate "2025.03.23"]
[EventType "tourn"]
[EventCountry "HUN"]
[SourceTitle "playchess.com"]
[Source "ChessBase"]
[SourceQuality "1"]
[TimeControl "5400+30"]

1. e4 {[%emt 0:00:08]} c5 {[%emt 0:00:07]} 2. Nf3 {[%emt 0:00:07]} e6 {[%emt 0:00:19]} 3. d4 {[%emt 0:00:10]} cxd4 {[%emt 0:00:07]} 4. Nxd4 {[%emt 0:00:18]} Nc6 {[%emt 0:00:08]} 5. Nc3 {[%emt 0:00:11]} Qc7 {[%emt 0:00:20]} 6. Ncb5 {[%emt 0:00:24]} Qb8 {[%emt 0:00:13]} 7. Bd3 {[%emt 0:00:33]} a6 {[%emt 0:01:19]} 8. Nxc6 {[%emt 0:00:10]} bxc6 {[%emt 0:00:03]} 9. Nd4 {[%emt 0:00:13]} Nf6 {[%emt 0:03:22]} 10. O-O {[%emt 0:00:37]} Bb7 {[%emt 0:01:41]} 11. Re1 {[%emt 0:19:27]} c5 {[%emt 0:01:39]} 12. Nf3 {[%emt 0:00:12]} c4 {[%emt 0:02:23]} 13. Bxc4 {[%emt 0:01:13]} Bxe4 {[%emt 0:02:20]} 14. Nd2 {[%emt 0:11:56]} Bb7 {[%emt 0:05:30]} 15. b3 {[%emt 0:09:24]} Bc5 {[%emt 0:09:25]} 16. Nf1 {[%emt 0:02:59]} Qc7 {[%emt 0:09:48]} 17. Be3 {[%emt 0:02:42]} Qc6 {[%emt 0:03:02]} 18. f3 {[%emt 0:00:44]} d5 {[%emt 0:03:03]} 19. Bd3 {[%emt 0:01:00]} O-O {[%emt 0:05:02]} 20. Qd2 {[%emt 0:01:18]} 1/2-1/2

[Event "SixDays Budapest March IM B 2025"]
[Site "Budapest"]
[Date "2025.03.29"]
[Round "9.2"]
[White "Kolimar, Kristof Pal"]
[Black "Vuelban, Virgilio"]
[Result "1-0"]
[Annotator "RC"]
[ECO "A41"]
[WhiteElo "2284"]
[BlackElo "2244"]
[PlyCount "131"]
[EventDate "2025.03.23"]
[EventType "tourn"]
[EventCountry "HUN"]
[SourceTitle "playchess.com"]
[Source "ChessBase"]
[SourceQuality "1"]
[TimeControl "5400+30"]

1. d4 d6 2. Nf3 g6 3. g3 b6 4. Bg2 Bb7 5. d5 Nf6 6. c4 c6 7. Nc3 Bg7 8. O-O O-O 9. Bf4 c5 10. Qd2 a6 11. a4 Nbd7 12. Bh6 Rb8 13. Bxg7 Kxg7 14. e4 Qc7 15. Rad1 Rbd8 16. Ne1 Rfe8 17. Nd3 e6 18. f4 exd5 19. exd5 Re7 20. Bf3 Rde8 21. Rde1 Nf8 22. g4 Rxe1 23. Nxe1 Bc8 24. g5 Ng8 25. Ne4 f5 26. Qc3+ Kf7 27. Nf2 Bd7 28. b3 Qd8 29. Nc2 a5 30. h4 Bc8 31. h5 gxh5 32. Bxh5+ Ng6 33. Qh8 Re7 34. Qxh7+ Kf8 35. Qxg6 Rg7 36. Qe8+ Qxe8 37. Bxe8 Kxe8 38. Kg2 Rh7 39. Na3 Bd7 40. Nb5 Bxb5 41. axb5 Ne7 42. Re1 Rg7 43. Nh1 Kd7 44. Ng3 Ng6 45. Kf3 Nh4+ 46. Kf2 Ng6 47. Nxf5 Rf7 48. Re6 Rxf5 49. Rxg6 Rxf4+ 50. Ke3 Rg4 51. Kf3 Rd4 52. Re6 a4 53. bxa4 Rxc4 54. Re4 Rc1 55. g6 Rf1+ 56. Kg2 Rf8 57. g7 Rg8 58. Rg4 Ke7 59. Kf3 Kf7 60. Kf4 c4 61. Ke4 Re8+ 62. Kd4 Kg8 63. Kxc4 Re1 64. Rg6 Rc1+ 65. Kb3 Rb1+ 66. Ka2 1-0

[Event "SixDays Budapest March IM B 2025"]
[Site "Budapest"]
[Date "2025.03.29"]
[Round "9.3"]
[White "Pavan Karthikeya Varma Gunturi"]
[Black "Shah, Vishwa"]
[Result "1/2-1/2"]
[Annotator "NA RC"]
[ECO "B53"]
[WhiteElo "2015"]
[BlackElo "2172"]
[PlyCount "53"]
[EventDate "2025.03.23"]
[EventType "tourn"]
[EventCountry "HUN"]
[SourceTitle "playchess.com"]
[Source "ChessBase"]
[SourceQuality "1"]
[TimeControl "5400+30"]

1. e4 {[%emt 0:00:31]} c5 {[%emt 0:00:04]} 2. Nf3 {[%emt 0:00:12]} d6 {[%emt 0:00:05]} 3. d4 {[%emt 0:00:07]} cxd4 {[%emt 0:00:04]} 4. Qxd4 {[%emt 0:00:08]} Nc6 {[%emt 0:00:05]} 5. Qe3 {[%emt 0:00:07]} g6 {[%emt 0:00:05]} 6. Be2 {[%emt 0:00:16]} Bg7 {[%emt 0:00:07]} 7. O-O {[%emt 0:01:04]} Nf6 {[%emt 0:00:05]} 8. h3 {[%emt 0:00:08]} O-O {[%emt 0:00:05]} 9. c4 {[%emt 0:00:23]} Nd7 {[%emt 0:00:34]} 10. Nc3 {[%emt 0:00:39]} Qb6 {[%emt 0:00:19]} 11. Qd2 {[%emt 0:00:06]} Nc5 {[%emt 0:00:36]} 12. Nd5 {[%emt 0:03:19]} Qd8 {[%emt 0:02:18]} 13. Qc2 {[%emt 0:00:23]} e6 {[%emt 0:09:21]} 14. Nc3 {[%emt 0:01:40]} Bxc3 {[%emt 0:01:22]} 15. bxc3 {[%emt 0:00:37]} Qe7 {[%emt 0:02:56]} 16. Nd4 {[%emt 0:07:12]} e5 {[%emt 0:07:52]} 17. Nxc6 {[%emt 0:01:44]} bxc6 {[%emt 0:00:02]} 18. f4 {[%emt 0:05:18]} exf4 {[%emt 0:04:43]} 19. Rxf4 {[%emt 0:02:57]} f5 {[%emt 0:01:06]} 20. Be3 {[%emt 0:11:53]} Nxe4 {[%emt 0:03:31]} 21. Re1 {[%emt 0:05:46]} Be6 {[%emt 0:02:32]} 22. Bd3 {[%emt 0:03:57]} Nf6 {[%emt 0:07:36]} 23. c5 {[%emt 0:05:09]} d5 {[%emt 0:12:48]} 24. Bd4 {[%emt 0:00:42]} Rae8 {[%emt 0:03:12]} 25. Ref1 {[%emt 0:06:32]} Nd7 {[%emt 0:01:49]} 26. Qf2 {[%emt 0:03:34]} Rf7 {[%emt 0:05:48]} 27. Re1 {[%emt 0:07:13]} 1/2-1/2

[Event "SixDays Budapest March IM B 2025"]
[Site "Budapest"]
[Date "2025.03.29"]
[Round "9.4"]
[White "Katsanis, Vasileios Dim"]
[Black "Banerjee, Supratit"]
[Result "1/2-1/2"]
[Annotator "NA RC"]
[ECO "E77"]
[WhiteElo "2253"]
[BlackElo "2250"]
[PlyCount "59"]
[EventDate "2025.03.23"]
[EventType "tourn"]
[EventCountry "HUN"]
[SourceTitle "playchess.com"]
[Source "ChessBase"]
[SourceQuality "1"]
[TimeControl "5400+30"]

1. d4 {[%emt 0:00:03]} Nf6 {[%emt 0:00:15]} 2. c4 {[%emt 0:00:05]} g6 {[%emt 0:00:08]} 3. Nc3 {[%emt 0:00:03]} Bg7 {[%emt 0:00:09]} 4. e4 {[%emt 0:00:05]} d6 {[%emt 0:00:07]} 5. f4 {[%emt 0:00:06]} c5 {[%emt 0:00:09]} 6. d5 {[%emt 0:00:03]} O-O {[%emt 0:00:23]} 7. Nf3 {[%emt 0:00:03]} e6 {[%emt 0:00:34]} 8. dxe6 {[%emt 0:00:06]} fxe6 {[%emt 0:00:27]} 9. Bd3 {[%emt 0:00:05]} Nc6 {[%emt 0:01:48]} 10. O-O {[%emt 0:00:05]} b6 {[%emt 0:01:34]} 11. Ng5 {[%emt 0:00:15]} Qe7 {[%emt 0:00:45]} 12. Bd2 {[%emt 0:00:28]} Bb7 {[%emt 0:00:23]} 13. f5 {[%emt 0:02:04]} Ne5 {[%emt 0:15:01]} 14. Qc2 {[%emt 0:14:06]} Bc8 {[%emt 0:10:40]} 15. fxg6 {[%emt 0:19:11]} hxg6 {[%emt 0:03:49]} 16. Be2 {[%emt 0:04:01]} Bb7 {[%emt 0:05:44]} 17. Nh3 {[%emt 0:07:46]} Nh7 {[%emt 0:13:41]} 18. Be3 {[%emt 0:07:50]} Rxf1+ {[%emt 0:04:00]} 19. Rxf1 {[%emt 0:00:02]} Rf8 {[%emt 0:01:00]} 20. Rxf8+ {[%emt 0:01:58]} Qxf8 {[%emt 0:03:24]} 21. Qd2 {[%emt 0:01:48]} a6 {[%emt 0:04:03]} 22. Bf4 {[%emt 0:07:56]} Qe7 {[%emt 0:05:35]} 23. Nf2 {[%emt 0:04:15]} Bc6 {[%emt 0:07:02]} 24. a3 {[%emt 0:02:19]} Nf7 {[%emt 0:03:00]} 25. Be3 {[%emt 0:05:47]} Nf6 {[%emt 0:02:37]} 26. Bd1 {[%emt 0:10:42]} d5 {[%emt 0:09:55]} 27. cxd5 {[%emt 0:00:44]} exd5 {[%emt 0:00:07]} 28. exd5 {[%emt 0:00:23]} Nxd5 {[%emt 0:00:25]} 29. Nxd5 {[%emt 0:00:22]} Bxd5 {[%emt 0:00:07]} 30. Nd3 {[%emt 0:05:05]} 1/2-1/2